bitfinex/quotes_SOLUSD_20250607
["timestamp","ask_amount","ask_price","bid_price","bid_amount"]
[1749323570025,14.64580272,151.01,150.97,8.02367994]
[1749323570804,14.64580272,151.01,150.97,18.30367994]
[1749323572225,8.02367994,151.01,150.97,24.92745376]
[1749323574022,8.02367994,151.02,150.98,8.02367994]
[1749323575333,14.64538742,151.02,150.98,8.02367994]
[1749323575721,6.62170748,151.02,150.98,8.02367994]
[1749323575922,14.64538742,151.02,150.98,8.02367994]
[1749323580236,8.02367994,151.01,150.97,18.30367994]
[1749323580614,8.02367994,151.01,150.97,24.92748214]
[1749323582033,8.02367994,151.02,150.97,24.92748214]
[1749323583837,14.64559129,151.02,150.97,24.92748214]
[1749323585345,14.64559129,151.02,150.98,8.02367994]
[1749323589244,11.77006013,151.02,150.97,22.051961]
[1749323590363,11.77006013,151.02,150.97,10.28]
[1749323590644,5.14814878,151.01,150.97,15.42814878]
[1749323591435,11.77033466,151.01,150.97,15.42814878]
[1749323592161,6.62218588,151.01,150.97,15.42814878]
[1749323593839,11.76997629,151.02,150.97,22.05192234]
[1749323595252,11.76997629,151.02,150.97,10.28]
[1749323595452,11.76997629,151.02,150.97,15.42814878]
[1749323596850,11.76997629,151.02,150.98,2.48320845]
[1749323597053,11.76997629,151.02,150.97,22.05193923]
[1749323597259,11.76997629,151.02,150.98,7.6312937]
[1749323597451,11.76997629,151.02,150.98,5.14814878]
[1749323598966,6.62182751,151.02,150.98,5.14814878]
[1749323599131,17.60178097,151.04,151.01,5.14814878]
[1749323601562,17.60178097,151.04,151.0,22.03032323]
[1749323601768,17.60178097,151.04,151.01,2.4798673]
[1749323601972,17.60178097,151.04,151.0,22.03032323]
[1749323602469,17.60178097,151.04,151.01,2.47895579]
[1749323602680,17.60178097,151.04,151.0,22.03032323]
[1749323602872,17.60178097,151.04,151.01,5.14814878]
[1749323605362,17.60178097,151.04,151.02,2.47881984]
[1749323605565,17.60178097,151.04,151.01,11.77022265]
[1749323606177,22.74992975,151.04,151.0,22.03048084]
[1749323606862,22.74992975,151.04,151.01,2.47889946]
[1749323607056,22.74992975,151.04,151.0,22.03048084]
[1749323607257,22.74992975,151.04,151.01,2.47883993]
[1749323607450,22.74992975,151.04,151.0,22.03048084]
[1749323607670,22.74992975,151.04,151.01,2.47888102]
[1749323607978,22.74992975,151.04,151.0,22.03048084]
[1749323608168,22.74992975,151.04,151.01,2.47889923]
[1749323608350,22.74992975,151.04,151.02,2.4788307]
[1749323608551,22.74992975,151.04,151.0,22.03048084]
[1749323608777,22.74992975,151.04,151.01,2.47883053]
[1749323608972,22.74992975,151.04,151.0,22.03048084]
[1749323609174,22.74992975,151.04,151.01,2.47744452]
[1749323609353,22.74992975,151.04,151.0,22.03048084]
[1749323609568,22.74992975,151.04,151.01,2.47742609]
[1749323609754,17.60178097,151.04,151.0,22.03048084]
[1749323609954,17.60178097,151.04,151.01,2.47742609]
[1749323610155,17.60178097,151.04,151.0,22.03048084]
[1749323610457,17.60178097,151.04,151.01,2.47737016]
[1749323610664,17.60178097,151.04,151.0,22.03048084]
[1749323610863,17.60178097,151.04,151.01,2.47737016]
[1749323611181,17.60178097,151.04,151.0,22.03048084]
[1749323611366,17.60178097,151.04,151.01,2.47648312]
[1749323611564,17.60178097,151.04,151.0,22.03048084]
[1749323611878,17.60178097,151.04,151.01,2.47648312]
[1749323612057,17.60178097,151.04,151.0,22.03048084]
[1749323612953,17.60178097,151.04,151.01,2.47646915]
[1749323613282,17.60178097,151.04,151.0,22.03048084]
[1749323613676,17.60178097,151.04,151.01,2.47605062]
[1749323613869,17.60178097,151.04,151.0,22.03048084]
[1749323614073,17.60178097,151.04,151.01,2.47605062]
[1749323614271,17.60178097,151.04,151.0,22.03048084]
[1749323614474,17.60178097,151.04,151.01,2.47605062]
[1749323614674,17.60178097,151.04,151.0,22.03048084]
[1749323614875,17.60178097,151.04,151.01,2.47605062]
[1749323615061,17.60178097,151.04,151.0,22.03048084]
[1749323615557,17.60178097,151.04,151.01,2.47605062]
[1749323615757,24.22263627,151.04,151.0,15.40814878]
[1749323615964,24.22263627,151.04,151.01,2.47605045]
[1749323616166,24.22263627,151.04,151.0,15.40814878]
[1749323616376,24.22263627,151.04,151.01,2.47580245]
[1749323616579,24.22263627,151.04,151.0,15.40814878]
[1749323616881,29.37078505,151.04,151.01,2.47580262]
[1749323617080,29.37078505,151.04,151.0,15.40814878]
[1749323617280,29.37078505,151.04,151.01,2.47580245]
[1749323617483,29.37078505,151.04,151.0,15.40814878]
[1749323617677,29.37078505,151.04,151.01,2.47580262]
[1749323617982,29.37078505,151.04,151.0,15.40814878]
[1749323618158,29.37078505,151.04,151.01,2.47581642]
[1749323618477,29.37078505,151.04,151.0,15.40814878]
[1749323618684,29.37078505,151.04,151.01,2.4758166]
[1749323618888,29.37078505,151.04,151.0,15.40814878]
[1749323619182,29.37078505,151.04,151.01,2.47583057]
[1749323619381,29.37078505,151.04,151.0,15.40814878]
[1749323619786,29.37078505,151.04,151.01,2.4758166]
[1749323619985,29.37078505,151.04,151.0,15.40814878]
[1749323620182,29.37078505,151.04,151.01,2.47581453]
[1749323620388,29.37078505,151.04,151.0,15.40814878]
[1749323620582,29.37078505,151.04,151.01,2.47581453]
[1749323620791,29.37078505,151.04,151.0,15.40814878]
[1749323621966,29.37078505,151.04,151.01,2.47575325]
[1749323622166,29.37078505,151.04,151.0,15.40814878]
[1749323622368,29.37078505,151.04,151.01,2.47574661]
[1749323622590,29.37078505,151.04,151.0,15.40814878]
[1749323623092,29.37078505,151.04,151.01,2.47574661]
[1749323623305,29.37078505,151.04,151.0,15.40814878]
[1749323623480,29.37078505,151.04,151.01,2.47550178]
[1749323623684,29.37078505,151.04,151.0,15.40814878]
[1749323623860,29.37078505,151.04,151.01,2.47548254]
[1749323624059,29.37078505,151.04,151.0,15.40814878]
[1749323624489,29.37078505,151.04,151.01,2.47547402]
[1749323624675,29.37078505,151.04,151.0,15.40814878]
[1749323625076,29.37078505,151.04,151.01,2.47548799]
[1749323625278,29.37078505,151.04,151.0,15.40814878]
[1749323625477,29.37078505,151.04,151.01,2.47548799]
[1749323625678,29.37078505,151.04,151.0,15.40814878]
[1749323625878,29.37078505,151.04,151.01,2.47554434]
[1749323626088,29.37078505,151.04,151.0,15.40814878]
[1749323626267,29.37078505,151.04,151.01,2.47554434]
[1749323626594,29.37078505,151.04,151.0,15.40814878]
[1749323626782,29.37078505,151.04,151.01,2.47554417]
[1749323626979,29.37078505,151.04,151.0,15.40814878]
[1749323627294,29.37078505,151.04,151.01,2.47554434]
[1749323627593,29.37078505,151.04,151.0,15.40814878]
[1749323627800,17.60178097,151.04,151.01,5.14814878]
[1749323630394,22.74992975,151.04,151.0,22.03055799]
[1749323630579,22.74992975,151.04,151.01,2.47555831]
[1749323630781,22.74992975,151.04,151.0,22.03055799]
[1749323630981,22.74992975,151.04,151.01,2.47555831]
[1749323631180,22.74992975,151.04,151.0,22.03055799]
[1749323631389,22.74992975,151.04,151.01,2.47591735]
[1749323631598,22.74992975,151.04,151.0,22.03055799]
[1749323631790,22.74992975,151.04,151.01,2.47591718]
[1749323632100,17.60178097,151.04,151.0,22.03055799]
[1749323632304,17.60178097,151.04,151.01,2.47626811]
[1749323632505,17.60178097,151.04,151.0,22.03055799]
[1749323632707,17.60178097,151.04,151.01,2.47625937]
[1749323633008,17.60178097,151.04,151.0,22.03055799]
[1749323633323,17.60178097,151.04,151.01,2.47620475]
[1749323633479,17.60178097,151.04,151.0,22.03055799]
[1749323633678,17.60178097,151.04,151.01,2.47622759]
[1749323633879,17.60178097,151.04,151.0,22.03055799]
[1749323634179,17.60178097,151.04,151.01,2.47628209]
[1749323634401,17.60178097,151.04,151.0,22.03055799]
[1749323634606,17.60178097,151.04,151.01,2.47660551]
[1749323634909,17.60178097,151.04,151.0,22.03055799]
[1749323635283,17.60178097,151.04,151.01,2.4766057]
[1749323635483,17.60178097,151.04,151.0,22.03055799]
[1749323636105,17.60178097,151.04,151.01,2.4766057]
[1749323636386,17.60178097,151.04,151.0,22.03055799]
[1749323636786,17.60178097,151.04,151.01,2.4766057]
[1749323636986,17.60178097,151.04,151.0,22.03055799]
[1749323637499,17.60178097,151.04,151.01,2.47660561]
[1749323637801,17.60178097,151.04,151.0,22.03055799]
[1749323637996,17.60178097,151.04,151.01,2.47660561]
[1749323638180,17.60178097,151.04,151.0,22.03055799]
[1749323638709,17.60178097,151.04,151.01,2.47810984]
[1749323638894,17.60178097,151.04,151.0,22.03055799]
[1749323639091,24.22259493,151.04,151.0,15.40814878]
[1749323639491,24.22259493,151.04,151.01,2.47812382]
[1749323639692,24.22259493,151.04,151.0,15.40814878]
[1749323639898,24.22259493,151.04,151.01,2.47812382]
[1749323640097,24.22259493,151.04,151.0,15.40814878]
[1749323641007,24.22259493,151.04,151.01,2.47810544]
[1749323641310,24.22259493,151.04,151.0,22.03061967]
[1749323641491,24.22259493,151.04,151.01,2.47819455]
[1749323641691,24.22259493,151.04,151.0,22.03061967]
[1749323642094,24.22259493,151.04,151.01,2.48224877]
[1749323642289,24.22259493,151.04,151.0,22.03061967]
[1749323642714,24.22259493,151.04,151.01,2.48224887]
[1749323643012,24.22259493,151.04,151.02,2.48224869]
[1749323643210,17.60178097,151.04,151.0,16.88247089]
[1749323643512,17.60178097,151.04,151.01,2.48224887]
[1749323643807,17.60178097,151.04,151.0,22.03061967]
[1749323644015,17.60178097,151.04,151.01,2.48224887]
[1749323644220,17.60178097,151.04,151.02,2.48224869]
[1749323644422,17.60178097,151.04,151.03,7.63007089]
[1749323644709,5.14814878,151.08,151.03,5.14814878]
[1749323644911,5.14814878,151.09,151.05,5.14814878]
[1749323645118,5.14814878,151.09,151.06,2.48156601]
[1749323645415,5.14814878,151.09,151.05,10.24]
[1749323645717,5.14814878,151.08,151.05,10.24]
[1749323645888,5.14814878,151.06,151.0,11.35185268]
[1749323646090,32.19756531,151.09,151.03,10.24]
[1749323646299,26.0,151.09,151.03,10.24]
[1749323646586,23.16653428,151.08,151.03,10.24]
[1749323647215,5.14814878,151.04,151.03,10.24]
[1749323647516,5.14814878,151.04,151.03,12.72420578]
[1749323647717,11.76891149,151.04,151.03,10.24]
[1749323648304,11.76891149,151.04,151.03,12.72411281]
[1749323648586,11.76891149,151.04,151.03,10.24]
[1749323650114,5.14814878,151.04,151.03,10.24]
[1749323650313,11.76891149,151.04,151.03,10.24]
[1749323654620,11.76891149,151.04,151.03,12.72402058]
[1749323654924,11.76891149,151.04,151.03,10.24]
[1749323655400,11.76891149,151.04,150.99,36.24]
[1749323655602,5.14814878,151.02,150.99,36.24]
[1749323656003,5.14814878,151.02,151.0,2.4842663]
[1749323656201,11.76986189,151.02,151.01,2.48474875]
[1749323656427,11.76986189,151.02,150.99,36.24]
[1749323656622,11.76986189,151.02,151.0,2.48474892]
[1749323656805,11.76986189,151.02,151.01,2.48474875]
[1749323657005,11.76986189,151.02,151.01,2.48474857]
[1749323657213,11.76986189,151.02,150.99,36.24]
[1749323657502,5.14814878,151.0,150.99,10.24]
[1749323657703,5.14814878,151.01,150.99,12.72117587]
[1749323657903,5.14814878,151.01,151.0,2.48113104]
[1749323658120,5.14814878,151.01,150.99,10.24]
[1749323658318,5.14814878,151.01,151.0,2.48112828]
[1749323658518,5.14814878,151.01,150.99,10.24]
[1749323659539,5.14814878,151.01,151.0,2.48112828]
[1749323659721,5.14814878,151.01,151.0,2.4811281]
[1749323660033,5.14814878,151.01,150.99,10.24]
[1749323660531,11.77023895,151.01,150.99,10.24]
[1749323662316,5.14814878,151.0,150.99,10.24]
[1749323663535,5.14814878,151.01,150.99,10.24]
[1749323666822,5.14814878,151.03,150.99,10.24]
[1749323667025,5.14814878,151.05,151.0,5.14814878]
[1749323667228,6.61989384,151.06,151.01,2.47773285]
[1749323667229,5.14814878,151.04,151.01,2.47773285]
[1749323667442,5.14814878,151.04,151.0,5.14814878]
[1749323667630,5.14814878,151.04,151.01,2.47778878]
[1749323667833,5.14814878,151.04,150.99,22.0110347]
[1749323668041,5.14814878,151.04,151.0,2.47776691]
[1749323668238,5.14814878,151.04,150.99,22.0110347]
[1749323668424,5.14814878,151.04,151.0,2.47776742]
[1749323668619,5.14814878,151.04,151.01,2.47776742]
[1749323668943,5.14814878,151.04,150.99,22.0110347]
[1749323669240,5.14814878,151.04,151.0,6.62236362]
[1749323669441,5.14814878,151.04,151.01,2.47776694]
[1749323669642,5.14814878,151.04,151.0,6.62236362]
[1749323669833,5.14814878,151.04,151.01,2.47776709]
[1749323670037,5.14814878,151.04,151.0,6.62236362]
[1749323670230,5.14814878,151.04,151.01,2.47776679]
[1749323670433,5.14814878,151.04,151.0,6.62236362]
[1749323670637,5.14814878,151.04,151.01,2.47776694]
[1749323670819,5.14814878,151.04,151.0,6.62236362]
[1749323671023,5.14814878,151.04,151.01,2.47776709]
[1749323671223,5.14814878,151.04,151.0,6.62236362]
[1749323671725,5.14814878,151.04,151.01,2.47776709]
[1749323671923,5.14814878,151.04,151.0,6.62236362]
[1749323672450,5.14814878,151.03,151.01,2.47780212]
[1749323672643,5.14814878,151.03,151.0,6.62236362]
[1749323673141,5.14814878,151.03,151.01,2.47780244]
[1749323673343,5.14814878,151.03,151.0,6.62236362]
[1749323673533,5.14814878,151.03,151.01,2.4778023]
[1749323673734,5.14814878,151.03,151.0,6.62236362]
[1749323674428,5.14814878,151.03,151.01,2.47778832]
[1749323674627,5.14814878,151.03,151.0,6.62236362]
[1749323674828,5.14814878,151.03,151.01,2.47778847]
[1749323675144,5.14814878,151.03,151.0,6.62236362]
[1749323675329,5.14814878,151.03,151.01,2.4778023]
[1749323675525,5.14814878,151.03,151.0,6.62236362]
[1749323676327,5.14814878,151.03,151.01,2.47777391]
[1749323676527,5.14814878,151.03,151.0,6.62236362]
[1749323676744,5.14814878,151.03,151.01,2.47761022]
[1749323677050,5.14814878,151.03,151.0,16.86236362]
[1749323677648,5.14814878,151.03,151.01,2.47770468]
[1749323677847,5.14814878,151.03,151.0,16.86236362]
[1749323678153,5.14814878,151.03,151.01,2.47770483]
[1749323678374,5.14814878,151.03,151.0,16.86236362]
[1749323679131,5.14814878,151.03,151.01,2.48116283]
[1749323679454,5.14814878,151.03,151.0,16.86236362]
[1749323679647,5.14814878,151.03,151.01,2.48111583]
[1749323679841,5.14814878,151.03,151.0,16.86236362]
[1749323680045,5.14814878,151.03,151.01,2.48103168]
[1749323680246,5.14814878,151.03,151.0,16.86236362]
[1749323680437,5.14814878,151.03,151.01,2.48103186]
[1749323680638,5.14814878,151.03,151.0,16.86236362]
[1749323680954,5.14814878,151.03,151.01,2.48103168]
[1749323681151,5.14814878,151.03,151.02,2.48100369]
[1749323681448,5.14814878,151.03,151.02,2.48100337]
[1749323681654,5.14814878,151.03,151.0,16.86236362]
[1749323681962,5.14814878,151.03,151.01,2.48103186]
[1749323682258,5.14814878,151.03,151.0,16.86236362]
[1749323682759,5.14814878,151.03,151.01,2.48102731]
[1749323682946,5.14814878,151.03,151.0,16.86236362]
[1749323683141,5.14814878,151.03,151.01,2.48097381]
[1749323683347,5.14814878,151.03,151.02,2.48097363]
[1749323683542,5.14814878,151.03,151.0,16.86236362]
[1749323684046,5.14814878,151.03,151.01,2.48097573]
[1749323684247,5.14814878,151.03,151.0,16.86236362]
[1749323684559,5.14814878,151.03,151.01,2.4783061]
[1749323684730,5.14814878,151.03,151.0,16.86236362]
[1749323684934,5.14814878,151.03,151.01,2.47834388]
[1749323685130,5.14814878,151.03,151.0,16.86236362]
[1749323685335,5.14814878,151.03,151.01,2.47834403]
[1749323685541,5.14814878,151.03,151.0,16.86236362]
[1749323685945,5.14814878,151.03,151.01,2.47829227]
[1749323686145,5.14814878,151.03,151.0,16.86236362]
[1749323686554,5.14814878,151.03,151.01,2.47836217]
[1749323686745,5.14814878,151.03,151.0,16.86236362]
[1749323686944,5.14814878,151.03,151.01,2.47836202]
[1749323687147,5.14814878,151.03,151.0,16.86236362]
[1749323687955,5.14814878,151.03,151.01,2.47836217]
[1749323688261,5.14814878,151.03,151.0,16.86236362]
[1749323688458,5.14814878,151.03,151.01,2.47836217]
[1749323688663,5.14814878,151.03,151.0,16.86236362]
[1749323688861,5.14814878,151.03,151.01,2.47836217]
[1749323689065,5.14814878,151.03,151.0,16.86236362]
[1749323690136,5.14814878,151.03,151.0,22.0105124]
[1749323690440,5.14814878,151.03,151.01,2.47836217]
[1749323690638,5.14814878,151.03,151.0,10.24]
[1749323690837,5.14814878,151.02,151.0,10.24]
[1749323691942,5.14814878,151.01,151.0,10.24]
[1749323693056,11.77022678,151.01,151.0,10.24]
[1749323695756,11.77022678,151.01,150.96,10.24]
[1749323695954,5.14814878,150.99,150.97,2.47811848]
[1749323696276,5.14814878,150.99,150.96,10.24]
[1749323696452,5.14814878,150.99,150.97,2.47811883]
[1749323696651,5.14814878,150.99,150.96,10.24]
[1749323696966,5.14814878,150.99,150.97,2.47813294]
[1749323697150,5.14814878,150.99,150.96,10.24]
[1749323697353,5.14814878,150.99,150.97,2.47813294]
[1749323697549,5.14814878,150.99,150.96,10.24]
[1749323697747,5.14814878,150.99,150.97,2.47812836]
[1749323697951,5.14814878,150.99,150.97,2.47812854]
[1749323698168,5.14814878,150.99,150.96,10.24]
[1749323698474,5.14814878,150.98,150.97,2.47812854]
[1749323698659,5.14814878,150.98,150.97,2.47813294]
[1749323699569,11.77110849,150.99,150.96,10.24]
[1749323699752,11.77110849,150.99,150.97,2.47813294]
[1749323699958,5.14814878,150.98,150.96,10.24]
[1749323700164,5.14814878,150.98,150.97,2.47813311]
[1749323700342,5.14814878,150.98,150.96,10.24]
[1749323700545,5.14814878,150.97,150.96,10.24]
[1749323705366,11.77198132,150.97,150.96,10.24]
[1749323707558,11.77198132,150.97,150.92,48.4]
[1749323707764,5.14814878,150.94,150.92,48.4]
[1749323708156,5.14814878,150.94,150.92,10.24]
[1749323709174,5.14814878,150.95,150.92,16.86599283]
[1749323710176,6.62312427,150.99,150.92,22.01414161]
[1749323710379,6.62312427,150.99,150.93,7.62192786]
[1749323710676,5.14814878,150.97,150.93,5.14814878]
[1749323711372,5.14814878,150.97,150.94,6.62514906]
[1749323721188,5.14814878,150.97,150.94,16.86514906]
[1749323723690,6.6218299,151.02,150.95,5.14814878]
[1749323723867,5.14814878,150.99,150.95,5.14814878]
[1749323724803,5.14814878,151.0,150.96,6.62427133]
[1749323725488,5.14814878,151.01,150.97,5.14814878]
[1749323725673,5.14814878,151.02,150.97,5.14814878]
[1749323726585,5.14814878,151.01,150.97,5.14814878]
[1749323726782,5.14814878,151.01,150.98,6.62339382]
[1749323738502,5.14814878,151.02,150.98,6.62339382]
[1749323740318,5.14814878,151.02,150.99,10.24]
[1749323742312,5.14814878,151.02,150.99,16.862799]
[1749323744013,5.14814878,151.02,150.99,10.24]
[1749323744996,5.14814878,151.01,150.99,10.24]
[1749323746826,5.14814878,151.0,150.99,10.24]
[1749323752728,5.14814878,151.01,150.99,10.24]
[1749323754233,5.14814878,151.02,150.99,10.24]
[1749323758700,26.0,151.05,150.99,16.8628887]
[1749323758927,5.14814878,151.05,151.01,5.14814878]
[1749323759433,5.14814878,151.05,151.01,45.24814878]
[1749323759613,33.28594097,151.06,151.04,5.14814878]
[1749323759817,57.11264398,151.12,151.04,5.14814878]
[1749323759818,6.61839247,151.1,151.05,5.14814878]
[1749323760002,5.14814878,151.1,151.05,5.14814878]
[1749323760201,5.14814878,151.09,151.05,5.14814878]
[1749323760524,5.14814878,151.07,151.04,10.24]
[1749323761425,5.14814878,151.06,151.04,10.24]
[1749323762233,5.14814878,151.08,151.04,22.00862684]
[1749323762438,5.14814878,151.07,151.04,10.24]
[1749323762604,5.14814878,151.07,151.04,16.8606822]
[1749323765521,5.14814878,151.08,151.04,16.8606822]
[1749323765839,5.14814878,151.08,151.05,2.47359106]
[1749323766006,5.14814878,151.08,151.06,2.47762673]
[1749323766208,5.14814878,151.08,151.04,16.8606822]
[1749323766429,5.14814878,151.08,151.05,2.47753038]
[1749323766625,5.14814878,151.08,151.06,2.47781648]
[1749323766821,5.14814878,151.08,151.04,22.00883098]
[1749323767310,5.14814878,151.08,151.05,2.47903865]
[1749323767644,5.14814878,151.08,151.06,2.47961387]
[1749323767821,5.14814878,151.08,151.05,6.62021309]
[1749323768021,5.14814878,151.08,151.06,2.47938286]
[1749323768241,5.14814878,151.08,151.05,6.62021309]
[1749323768549,5.14814878,151.08,151.04,22.00873498]
[1749323768708,5.14814878,151.08,151.05,2.48013404]
[1749323768908,5.14814878,151.08,151.04,22.00873498]
[1749323769435,5.14814878,151.1,151.06,11.7676656]
[1749323769645,5.14814878,151.1,151.07,2.47938875]
[1749323769843,5.14814878,151.11,151.06,11.7676656]
[1749323770154,5.14814878,151.11,151.06,51.8476656]
[1749323771034,5.14814878,151.11,151.07,5.14814878]
[1749323772637,5.14814878,151.11,151.06,51.8476656]
[1749323772818,5.14814878,151.1,151.06,45.22814878]
[1749323773011,29.32791125,151.14,151.04,36.24]
[1749323773012,5.14814878,151.07,151.04,36.24]
[1749323773235,5.14814878,151.07,151.04,10.24]
[1749323773417,5.14814878,151.06,151.04,10.24]
[1749323773739,5.14814878,151.05,151.04,10.24]
[1749323774126,5.14814878,151.06,151.04,10.24]
[1749323778340,5.14814878,151.07,151.04,10.24]
[1749323779117,5.14814878,151.06,151.04,10.24]
[1749323780630,5.14814878,151.07,151.04,10.24]
[1749323783040,5.14814878,151.07,151.04,16.86060698]
[1749323783224,5.14814878,151.08,151.04,22.00875576]
[1749323784624,5.14814878,151.07,151.04,16.86060698]
[1749323787546,5.14814878,151.08,151.04,22.00875576]
[1749323788054,5.14814878,151.09,151.05,5.14814878]
[1749323788236,5.14814878,151.08,151.04,15.38814878]
[1749323788445,5.14814878,151.07,151.04,10.24]
[1749323789250,5.14814878,151.09,151.04,22.0088347]
[1749323790249,5.14814878,151.09,151.05,5.14814878]
[1749323790748,5.14814878,151.09,151.05,11.76806254]
[1749323792946,5.14814878,151.09,151.05,6.61991376]
[1749323793856,11.76672094,151.09,151.05,6.61991376]
[1749323794051,5.14814878,151.08,151.05,6.61991376]
[1749323794250,5.14814878,151.08,151.05,16.85991376]
[1749323797354,5.14814878,151.09,151.05,22.00806254]
[1749323798486,5.14814878,151.1,151.05,22.00806254]
[1749323798846,5.14814878,151.1,151.06,5.14814878]
[1749323799046,5.14814878,151.11,151.07,5.14814878]
[1749323799233,5.14814878,151.11,151.06,5.14814878]
[1749323799439,5.14814878,151.11,151.07,5.14814878]
[1749323799833,5.14814878,151.12,151.08,5.14814878]
[1749323800932,5.14814878,151.1,151.07,40.08]
[1749323801251,5.14814878,151.08,151.05,10.24]
[1749323801559,5.14814878,151.06,151.05,10.24]
[1749323803063,11.76803491,151.06,151.05,10.24]
[1749323803363,14.6600939,151.06,151.05,10.24]
[1749323809072,8.04020777,151.06,151.05,10.24]
[1749323810770,8.04020777,151.1,151.05,18.28020777]
[1749323810942,8.04020777,151.1,151.06,8.04020777]
[1749323811142,8.04020777,151.11,151.06,8.04020777]
[1749323811350,8.04020777,151.1,151.06,8.04020777]
[1749323811949,8.04020777,151.1,151.07,2.47263476]
[1749323812276,8.04020777,151.09,151.05,24.90034765]
[1749323812748,6.61825892,151.1,151.06,2.47249755]
[1749323812749,8.04020777,151.1,151.06,2.47249755]
[1749323812948,8.04020777,151.1,151.06,8.04020777]
[1749323813460,8.04020777,151.09,151.05,24.90034765]
[1749323813646,8.04020777,151.09,151.06,2.47248046]
[1749323813841,8.04020777,151.09,151.05,24.90034765]
[1749323814077,8.04020777,151.09,151.06,2.47257139]
[1749323814264,8.04020777,151.09,151.08,26.0]
[1749323814951,8.04020777,151.09,151.05,36.24]
[1749323815275,8.04020777,151.09,151.05,50.90045435]
[1749323815967,8.04020777,151.09,151.06,2.47187008]
[1749323816145,8.04020777,151.09,151.05,50.90045435]
[1749323816967,8.04020777,151.09,151.06,2.471723]
[1749323817180,8.04020777,151.09,151.05,50.90045435]
[1749323817376,8.04020777,151.09,151.06,2.47168116]
[1749323817580,8.04020777,151.09,151.05,50.90045435]
[1749323817773,8.04020777,151.09,151.06,2.47180912]
[1749323818084,8.04020777,151.09,151.05,50.90045435]
[1749323818383,8.04020777,151.09,151.06,2.47180912]
[1749323818562,8.04020777,151.09,151.05,50.90045435]
[1749323818762,8.04020777,151.09,151.06,2.47168033]
[1749323818957,8.04020777,151.1,151.05,50.90045435]
[1749323819180,8.04020777,151.1,151.06,2.47147668]
[1749323819483,14.65808479,151.11,151.07,8.04020777]
[1749323819684,6.61787702,151.11,151.07,8.04020777]
[1749323819869,14.65808479,151.11,151.07,8.04020777]
[1749323821022,14.65702772,151.13,151.08,8.04020777]
[1749323822793,8.04020777,151.13,151.08,8.04020777]
[1749323823996,8.04020777,151.12,151.08,8.04020777]
[1749323825088,6.61769571,151.11,151.08,18.26020777]
[1749323826004,6.61638216,151.14,151.09,8.04020777]
[1749323826185,8.04020777,151.13,151.09,8.04020777]
[1749323827215,6.6172578,151.12,151.08,18.26020777]
[1749323827375,14.65746557,151.12,151.08,18.26020777]
[1749323829176,5.14154846,151.12,151.08,15.36154846]
[1749323831589,6.61638216,151.14,151.08,15.36154846]
[1749323831792,6.6160368,151.15,151.11,5.14154846]
[1749323832393,11.75721892,151.16,151.12,5.14154846]
[1749323835194,14.64604632,151.15,151.11,8.0300617]
[1749323835709,8.0300617,151.12,151.08,10.22]
[1749323836045,8.0300617,151.1,151.08,10.22]
[1749323836200,8.0300617,151.11,151.08,10.22]
[1749323840687,8.0300617,151.1,151.08,10.22]
[1749323841415,8.0300617,151.09,151.08,10.22]
[1749323841911,8.0300617,151.09,151.04,10.22]
[1749323842113,8.0300617,151.07,151.04,10.22]
[1749323842712,8.0300617,151.08,151.04,10.22]
[1749323844206,8.0300617,151.06,151.04,10.22]
[1749323844392,8.0300617,151.05,151.04,10.22]
[1749323844712,8.0300617,151.06,151.04,10.22]
[1749323845119,8.0300617,151.07,151.04,10.22]
[1749323846117,8.0300617,151.07,151.04,16.84064173]
[1749323848707,8.0300617,151.08,151.04,16.84064173]
[1749323850812,8.0300617,151.08,151.04,24.87070343]
[1749323852829,26.0,151.12,151.06,8.0300617]
[1749323853010,8.0300617,151.11,151.06,8.0300617]
[1749323853216,8.0300617,151.1,151.06,8.0300617]
[1749323854324,8.0300617,151.1,151.06,14.64989626]
[1749323856825,8.0300617,151.1,151.06,6.61983456]
[1749323857026,8.0300617,151.1,151.05,8.0300617]
[1749323857027,14.64832736,151.1,151.05,14.65028296]
[1749323857207,8.0300617,151.09,151.05,14.65028296]
[1749323858208,8.0300617,151.09,151.05,6.62022126]
[1749323860332,14.64868308,151.09,151.04,113.57063413]
[1749323860535,14.64868308,151.09,151.05,2.47102344]
[1749323860734,14.64868308,151.09,151.04,113.57063413]
[1749323861125,14.64868308,151.09,151.05,2.47165094]
[1749323861437,8.0300617,151.09,151.04,113.57063413]
[1749323861728,8.0300617,151.09,151.05,2.47228602]
[1749323861935,8.0300617,151.08,151.04,98.92]
[1749323862231,8.0300617,151.07,151.04,10.22]
[1749323863138,8.0300617,151.08,151.04,10.22]
[1749323863927,14.64909558,151.08,151.04,10.22]
[1749323864430,8.0300617,151.07,151.04,10.22]
[1749323869325,14.64909558,151.08,151.04,10.22]
[1749323871132,8.0300617,151.08,151.04,24.87081443]
[1749323875222,5.14426636,151.08,151.04,21.98501909]
[1749323876643,5.14426636,151.09,151.04,21.98501909]